[Event "*** Titled Tuesday 3|2 Blitz"]
[Site "Chess.com"]
[Date "2016.06.07"]
[Round "1"]
[White "SCIM"]
[Black "hansen"]
[Result "0-1"]
[WhiteElo "2223"]
[BlackElo "2550"]
[TimeControl "180+2"]
[EndTime "11:05:52 PDT"]
[Termination "hansen won by checkmate"]

1. d4 {[%clk 0:02:55.9]} 1... Nf6 {[%clk 0:03:00.1]} 2. c4 {[%clk 0:02:54.9]}
2... g6 {[%clk 0:02:52.9]} 3. Nc3 {[%clk 0:02:54]} 3... d5 {[%clk 0:02:53.5]} 4.
Bf4 {[%clk 0:02:53.8]} 4... Bg7 {[%clk 0:02:54.1]} 5. e3 {[%clk 0:02:53]} 5...
O-O {[%clk 0:02:54.1]} 6. Rc1 {[%clk 0:02:52.4]} 6... Be6 {[%clk 0:02:54.3]} 7.
c5 {[%clk 0:02:50.2]} 7... c6 {[%clk 0:02:54.5]} 8. Nf3 {[%clk 0:02:48.4]} 8...
Bg4 {[%clk 0:02:55]} 9. Be2 {[%clk 0:02:40.1]} 9... Bxf3 {[%clk 0:02:55.7]} 10.
Bxf3 {[%clk 0:02:40.3]} 10... Nbd7 {[%clk 0:02:56.7]} 11. O-O {[%clk 0:02:37.7]}
11... Re8 {[%clk 0:02:47.7]} 12. b4 {[%clk 0:02:23.6]} 12... e5 {[%clk
0:02:47.9]} 13. Bg3 {[%clk 0:02:23.4]} 13... a6 {[%clk 0:02:48]} 14. a4 {[%clk
0:02:21.9]} 14... exd4 {[%clk 0:02:46.2]} 15. exd4 {[%clk 0:02:21.6]} 15... Nf8
{[%clk 0:02:47.2]} 16. b5 {[%clk 0:01:59]} 16... axb5 {[%clk 0:02:46.3]} 17.
axb5 {[%clk 0:01:59.2]} 17... N6d7 {[%clk 0:02:47.4]} 18. bxc6 {[%clk
0:01:49.2]} 18... bxc6 {[%clk 0:02:47.9]} 19. Nxd5 {[%clk 0:01:41.8]} 19... cxd5
{[%clk 0:02:46]} 20. Bxd5 {[%clk 0:01:42.3]} 20... Ra7 {[%clk 0:02:31.5]} 21.
Bb3 {[%clk 0:01:30.2]} 21... Ne6 {[%clk 0:02:27.9]} 22. c6 {[%clk 0:01:14.3]}
22... Nxd4 {[%clk 0:02:18.1]} 23. cxd7 {[%clk 0:01:14.2]} 23... Rxd7 {[%clk
0:02:09.8]} 24. Kh1 {[%clk 0:00:25.7]} 24... Ne2 {[%clk 0:02:10]} 25. Qc2 {[%clk
0:00:26.3]} 25... Nxc1 {[%clk 0:02:10.4]} 26. Rxc1 {[%clk 0:00:24.3]} 26... h5
{[%clk 0:02:08.3]} 27. Qxg6 {[%clk 0:00:18.8]} 27... Rd1+ {[%clk 0:02:07.6]} 28.
Rxd1 {[%clk 0:00:18.6]} 28... Qxd1+ {[%clk 0:02:07.6]} 29. Bxd1 {[%clk
0:00:18.3]} 29... Re1# {[%clk 0:02:09.5]} 0-1

[Event "*** Titled Tuesday 3|2 Blitz"]
[Site "Chess.com"]
[Date "2016.06.07"]
[Round "1"]
[White "StoreySniper"]
[Black "Lukianoo"]
[Result "0-1"]
[WhiteElo "2324"]
[BlackElo "2598"]
[TimeControl "180+2"]
[EndTime "11:06:10 PDT"]
[Termination "Lukianoo won by checkmate"]

1. e4 {[%clk 0:03:00]} 1... c6 {[%clk 0:02:57.8]} 2. d4 {[%clk 0:02:59.4]} 2...
d5 {[%clk 0:02:47.7]} 3. exd5 {[%clk 0:03:00.6]} 3... cxd5 {[%clk 0:02:48.2]} 4.
Bd3 {[%clk 0:03:00.3]} 4... Nc6 {[%clk 0:02:47.8]} 5. c3 {[%clk 0:03:01.6]} 5...
g6 {[%clk 0:02:48.5]} 6. Ne2 {[%clk 0:03:01.9]} 6... Bf5 {[%clk 0:02:48.8]} 7.
O-O {[%clk 0:03:02.7]} 7... Nf6 {[%clk 0:02:48.6]} 8. Bxf5 {[%clk 0:02:57.2]}
8... gxf5 {[%clk 0:02:49]} 9. Ng3 {[%clk 0:02:58.9]} 9... e6 {[%clk 0:02:49.6]}
10. Re1 {[%clk 0:03:00.5]} 10... Be7 {[%clk 0:02:45.5]} 11. Bg5 {[%clk
0:03:01.4]} 11... Ne4 {[%clk 0:02:39.2]} 12. Bxe7 {[%clk 0:03:02.3]} 12... Qxe7
{[%clk 0:02:41.1]} 13. Nd2 {[%clk 0:02:59.1]} 13... O-O-O {[%clk 0:02:37.8]} 14.
Nf3 {[%clk 0:02:53.2]} 14... h5 {[%clk 0:02:36.6]} 15. Ne5 {[%clk 0:02:48.9]}
15... Nxe5 {[%clk 0:02:33]} 16. dxe5 {[%clk 0:02:50.2]} 16... h4 {[%clk
0:02:33.2]} 17. Nxe4 {[%clk 0:02:48.2]} 17... fxe4 {[%clk 0:02:33.7]} 18. Qd4
{[%clk 0:02:46.5]} 18... Kb8 {[%clk 0:02:31.2]} 19. Re3 {[%clk 0:02:41.1]} 19...
Rhg8 {[%clk 0:02:30.8]} 20. Kh1 {[%clk 0:02:41.5]} 20... Qg5 {[%clk 0:02:27.4]}
21. Rg1 {[%clk 0:02:41.3]} 21... Qf5 {[%clk 0:02:28.4]} 22. Rh3 {[%clk
0:02:39.1]} 22... Rxg2 {[%clk 0:02:08.2]} 23. Rxg2 {[%clk 0:02:38.7]} 23... Qxh3
{[%clk 0:02:08]} 24. Qe3 {[%clk 0:02:33.7]} 24... Qf5 {[%clk 0:02:05.2]} 25. f4
{[%clk 0:02:31.4]} 25... exf3 {[%clk 0:01:59.1]} 26. Rg1 {[%clk 0:02:31]} 26...
Qe4 {[%clk 0:01:32.5]} 27. Qf2 {[%clk 0:02:32.2]} 27... d4 {[%clk 0:01:27.9]}
28. Re1 {[%clk 0:02:30]} 28... Qf4 {[%clk 0:01:23.8]} 29. Rf1 {[%clk 0:02:16.5]}
29... d3 {[%clk 0:01:16.2]} 30. Rd1 {[%clk 0:02:17.7]} 30... d2 {[%clk
0:01:16.7]} 31. b4 {[%clk 0:02:08.2]} 31... h3 {[%clk 0:01:12]} 32. b5 {[%clk
0:01:53]} 32... Qe4 {[%clk 0:01:10.8]} 33. b6 {[%clk 0:01:49.4]} 33... axb6
{[%clk 0:01:02.9]} 34. Qxb6 {[%clk 0:01:43.4]} 34... f2# {[%clk 0:00:51.7]} 0-1

[Event "*** Titled Tuesday 3|2 Blitz"]
[Site "Chess.com"]
[Date "2016.06.07"]
[Round "1"]
[White "Usurpov"]
[Black "FairChess_on_YouTube"]
[Result "0-1"]
[WhiteElo "2360"]
[BlackElo "2708"]
[TimeControl "180+2"]
[EndTime "11:06:38 PDT"]
[Termination "FairChess_on_YouTube won by resignation"]

1. e4 {[%clk 0:03:01.9]} 1... c6 {[%clk 0:02:59.8]} 2. d4 {[%clk 0:03:00.1]}
2... d5 {[%clk 0:03:00.7]} 3. Nc3 {[%clk 0:03:01.5]} 3... dxe4 {[%clk
0:03:01.1]} 4. Nxe4 {[%clk 0:03:03.4]} 4... Bf5 {[%clk 0:03:02.2]} 5. Ng3 {[%clk
0:03:04.1]} 5... Bg6 {[%clk 0:03:03.2]} 6. Nf3 {[%clk 0:03:04.6]} 6... Nd7
{[%clk 0:03:03.4]} 7. h4 {[%clk 0:03:05.3]} 7... h6 {[%clk 0:03:04.6]} 8. h5
{[%clk 0:03:06.1]} 8... Bh7 {[%clk 0:03:05.7]} 9. Bd3 {[%clk 0:03:07.5]} 9...
Bxd3 {[%clk 0:03:07.2]} 10. Qxd3 {[%clk 0:03:09.3]} 10... Ngf6 {[%clk
0:03:08.6]} 11. Bd2 {[%clk 0:03:10.7]} 11... e6 {[%clk 0:03:09.9]} 12. Ne4
{[%clk 0:03:12.2]} 12... Nxe4 {[%clk 0:03:09.9]} 13. Qxe4 {[%clk 0:03:14.1]}
13... Nf6 {[%clk 0:03:10.4]} 14. Qd3 {[%clk 0:03:14.9]} 14... b5 {[%clk
0:03:00.9]} 15. a4 {[%clk 0:03:04.7]} 15... b4 {[%clk 0:02:54.6]} 16. Ne5 {[%clk
0:02:43]} 16... Qd5 {[%clk 0:02:39.8]} 17. f3 {[%clk 0:02:31.8]} 17... Bd6
{[%clk 0:02:35.2]} 18. O-O {[%clk 0:00:50.6]} 18... O-O {[%clk 0:02:20.9]} 19.
Qc4 {[%clk 0:00:43]} 19... Rfc8 {[%clk 0:02:07.7]} 20. c3 {[%clk 0:00:33.1]}
20... bxc3 {[%clk 0:01:58.4]} 21. Bxc3 {[%clk 0:00:24.6]} 21... c5 {[%clk
0:01:54.7]} 22. Qxd5 {[%clk 0:00:21.1]} 22... Nxd5 {[%clk 0:01:55.2]} 23. Nc4
{[%clk 0:00:17.9]} 23... Be7 {[%clk 0:01:56.1]} 24. Rac1 {[%clk 0:00:15.9]}
24... Bf6 {[%clk 0:01:50]} 25. dxc5 {[%clk 0:00:14.5]} 25... Nxc3 {[%clk
0:01:50.6]} 26. bxc3 {[%clk 0:00:15.4]} 26... Rxc5 {[%clk 0:01:52.2]} 27. Nd6
{[%clk 0:00:15.7]} 27... Bxc3 {[%clk 0:01:49.3]} 28. g4 {[%clk 0:00:14.7]} 28...
Rb8 {[%clk 0:01:45.4]} 29. Kg2 {[%clk 0:00:06.8]} 29... Rb2+ {[%clk 0:01:44.6]}
30. Rf2 {[%clk 0:00:08.2]} 30... Rxf2+ {[%clk 0:01:44.8]} 0-1

[Event "*** Titled Tuesday 3|2 Blitz"]
[Site "Chess.com"]
[Date "2016.06.07"]
[Round "1"]
[White "playerzr"]
[Black "Masterbeaterr"]
[Result "1-0"]
[WhiteElo "1933"]
[BlackElo "2358"]
[TimeControl "180+2"]
[EndTime "11:06:40 PDT"]
[Termination "playerzr won by resignation"]

1. d4 {[%clk 0:03:00.1]} 1... d5 {[%clk 0:02:58.7]} 2. c4 {[%clk 0:03:00.6]}
2... dxc4 {[%clk 0:03:00.6]} 3. e3 {[%clk 0:03:01]} 3... Nf6 {[%clk 0:02:58.6]}
4. Bxc4 {[%clk 0:03:01.2]} 4... e6 {[%clk 0:02:59.9]} 5. Nf3 {[%clk 0:03:01.9]}
5... c5 {[%clk 0:03:01.2]} 6. O-O {[%clk 0:03:00.8]} 6... Nc6 {[%clk 0:03:02]}
7. Nc3 {[%clk 0:02:58.6]} 7... cxd4 {[%clk 0:03:02.7]} 8. exd4 {[%clk
0:02:59.2]} 8... Be7 {[%clk 0:03:04.3]} 9. Bg5 {[%clk 0:02:58.8]} 9... O-O
{[%clk 0:03:04.3]} 10. Re1 {[%clk 0:02:57.2]} 10... Na5 {[%clk 0:03:03.9]} 11.
Bd3 {[%clk 0:02:56.3]} 11... b6 {[%clk 0:03:05.5]} 12. Ne5 {[%clk 0:02:43]}
12... Bb7 {[%clk 0:03:01.3]} 13. Ne4 {[%clk 0:02:32.7]} 13... Nxe4 {[%clk
0:02:57.9]} 14. Bxe7 {[%clk 0:02:31.8]} 14... Qxe7 {[%clk 0:02:59.6]} 15. Bxe4
{[%clk 0:02:32.5]} 15... Bxe4 {[%clk 0:02:59.2]} 16. Rxe4 {[%clk 0:02:33.2]}
16... Rad8 {[%clk 0:02:55.7]} 17. Qe1 {[%clk 0:02:23.8]} 17... Qb7 {[%clk
0:02:47.4]} 18. Rh4 {[%clk 0:02:19.2]} 18... Rd6 {[%clk 0:02:27.1]} 19. Qb1
{[%clk 0:02:15.2]} 19... g6 {[%clk 0:02:26.9]} 20. Qc1 {[%clk 0:02:13.4]} 20...
f6 {[%clk 0:02:18.6]} 21. Nf3 {[%clk 0:02:11.1]} 21... Rc8 {[%clk 0:02:12.8]}
22. Qh6 {[%clk 0:02:11]} 22... Qg7 {[%clk 0:02:13.6]} 23. Qf4 {[%clk 0:02:09.1]}
23... Rcd8 {[%clk 0:02:11.1]} 24. Qe3 {[%clk 0:02:09.2]} 24... b5 {[%clk
0:02:03.3]} 25. Rc1 {[%clk 0:02:06.7]} 25... Nc4 {[%clk 0:02:04.3]} 26. Qe2
{[%clk 0:02:05.2]} 26... Nb6 {[%clk 0:01:50.1]} 27. Qxb5 {[%clk 0:02:00.4]}
27... e5 {[%clk 0:01:36.3]} 28. Rc6 {[%clk 0:01:55]} 28... Qd7 {[%clk
0:01:26.1]} 29. Qb3+ {[%clk 0:01:54.5]} 29... Kg7 {[%clk 0:01:26.2]} 30. Rxd6
{[%clk 0:01:50.3]} 30... Qxd6 {[%clk 0:01:27.4]} 31. h3 {[%clk 0:01:45.6]} 31...
exd4 {[%clk 0:01:20.6]} 32. Rxd4 {[%clk 0:01:42.4]} 32... Qe7 {[%clk 0:01:21]}
33. Rxd8 {[%clk 0:01:39.1]} 33... Qxd8 {[%clk 0:01:22.9]} 34. Qa3 {[%clk
0:01:35.9]} 34... Qc7 {[%clk 0:01:21.3]} 35. Qe3 {[%clk 0:01:34.9]} 35... Nc4
{[%clk 0:01:19.5]} 36. Qc3 {[%clk 0:01:34.7]} 36... Qf4 {[%clk 0:01:17.2]} 37.
Nd4 {[%clk 0:01:33]} 37... Qc7 {[%clk 0:00:52.3]} 38. Ne6+ {[%clk 0:01:32.7]}
1-0

[Event "*** Titled Tuesday 3|2 Blitz"]
[Site "Chess.com"]
[Date "2016.06.07"]
[Round "1"]
[White "GMKrikor"]
[Black "yopino"]
[Result "1-0"]
[WhiteElo "2558"]
[BlackElo "2224"]
[TimeControl "180+2"]
[EndTime "11:06:51 PDT"]
[Termination "GMKrikor won by resignation"]

1. g3 {[%clk 0:02:59.4]} 1... d5 {[%clk 0:02:59.4]} 2. Bg2 {[%clk 0:03:01.3]}
2... c6 {[%clk 0:02:56.9]} 3. Nf3 {[%clk 0:03:02.6]} 3... Bf5 {[%clk 0:02:57.4]}
4. O-O {[%clk 0:03:04.5]} 4... Nf6 {[%clk 0:02:56.9]} 5. d3 {[%clk 0:03:05.9]}
5... Qd7 {[%clk 0:02:55.7]} 6. Nbd2 {[%clk 0:03:00.2]} 6... Bh3 {[%clk
0:02:55.3]} 7. e4 {[%clk 0:03:00.8]} 7... Bxg2 {[%clk 0:02:55.3]} 8. Kxg2 {[%clk
0:03:02.7]} 8... e6 {[%clk 0:02:55.5]} 9. Qe2 {[%clk 0:03:03.7]} 9... Be7 {[%clk
0:02:39.6]} 10. e5 {[%clk 0:02:58.1]} 10... Ng8 {[%clk 0:02:40.4]} 11. d4 {[%clk
0:02:57.1]} 11... Qc7 {[%clk 0:02:41.1]} 12. c3 {[%clk 0:02:54.1]} 12... Nd7
{[%clk 0:02:41.1]} 13. Nb3 {[%clk 0:02:53]} 13... Nh6 {[%clk 0:02:32.7]} 14.
Bxh6 {[%clk 0:02:52.5]} 14... gxh6 {[%clk 0:02:34.6]} 15. Qe3 {[%clk 0:02:54]}
15... h5 {[%clk 0:02:33.8]} 16. Qh6 {[%clk 0:02:54.2]} 16... h4 {[%clk
0:02:33.4]} 17. Nxh4 {[%clk 0:02:54.5]} 17... O-O-O {[%clk 0:02:33.4]} 18. f4
{[%clk 0:02:41.6]} 18... Rdg8 {[%clk 0:02:33.4]} 19. f5 {[%clk 0:02:39.2]} 19...
Bg5 {[%clk 0:02:30]} 20. Qh5 {[%clk 0:02:40.4]} 20... Bxh4 {[%clk 0:01:37.9]}
21. Qxh4 {[%clk 0:02:39.2]} 21... Rg7 {[%clk 0:01:38.8]} 22. fxe6 {[%clk
0:02:37.3]} 22... fxe6 {[%clk 0:01:40.7]} 23. Qh3 {[%clk 0:02:37]} 23... Re8
{[%clk 0:01:32.2]} 24. Qh6 {[%clk 0:02:36.4]} 24... Nf8 {[%clk 0:01:28.7]} 25.
Rf6 {[%clk 0:02:34]} 25... Ng6 {[%clk 0:01:29.6]} 26. Raf1 {[%clk 0:02:31.7]}
26... b6 {[%clk 0:01:13.8]} 27. Qh5 {[%clk 0:02:20.9]} 27... Qe7 {[%clk
0:01:10.1]} 28. Qe2 {[%clk 0:01:47.6]} 28... Kb7 {[%clk 0:00:57.3]} 29. Kh1
{[%clk 0:01:48.7]} 29... h5 {[%clk 0:00:45.3]} 30. Qxh5 {[%clk 0:01:46.8]} 30...
Rh8 {[%clk 0:00:43.9]} 31. Qf3 {[%clk 0:01:48]} 31... Ka8 {[%clk 0:00:40.4]} 32.
Rf2 {[%clk 0:01:47.5]} 32... Qe8 {[%clk 0:00:35.8]} 33. Rf7 {[%clk 0:01:45.8]}
33... Qg8 {[%clk 0:00:32]} 34. a4 {[%clk 0:01:36.4]} 34... Qh7 {[%clk
0:00:28.9]} 35. a5 {[%clk 0:01:34.9]} 1-0

[Event "*** Titled Tuesday 3|2 Blitz"]
[Site "Chess.com"]
[Date "2016.06.07"]
[Round "1"]
[White "Winehouse83"]
[Black "AleksandrKholin"]
[Result "1-0"]
[WhiteElo "2467"]
[BlackElo "2121"]
[TimeControl "180+2"]
[EndTime "11:06:51 PDT"]
[Termination "Winehouse83 won by resignation"]

1. d4 {[%clk 0:02:58.2]} 1... Nf6 {[%clk 0:03:00.5]} 2. c4 {[%clk 0:02:59.6]}
2... e6 {[%clk 0:03:01.4]} 3. Nf3 {[%clk 0:03:00.5]} 3... Bb4+ {[%clk 0:03:02]}
4. Nbd2 {[%clk 0:03:01.9]} 4... O-O {[%clk 0:03:02.3]} 5. e3 {[%clk 0:02:59.3]}
5... d5 {[%clk 0:03:01.9]} 6. a3 {[%clk 0:02:59.6]} 6... Be7 {[%clk 0:03:02]} 7.
Be2 {[%clk 0:02:51.8]} 7... c5 {[%clk 0:03:02.1]} 8. dxc5 {[%clk 0:02:52.6]}
8... Bxc5 {[%clk 0:03:02.1]} 9. b4 {[%clk 0:02:53.5]} 9... Be7 {[%clk
0:03:03.2]} 10. Bb2 {[%clk 0:02:54.7]} 10... a5 {[%clk 0:03:02.9]} 11. Bc3
{[%clk 0:02:52.7]} 11... axb4 {[%clk 0:03:01.5]} 12. axb4 {[%clk 0:02:54.6]}
12... Rxa1 {[%clk 0:03:02.1]} 13. Qxa1 {[%clk 0:02:56]} 13... dxc4 {[%clk
0:03:02.6]} 14. Nxc4 {[%clk 0:02:49.6]} 14... Bd7 {[%clk 0:02:39.9]} 15. O-O
{[%clk 0:02:48.3]} 15... Qc7 {[%clk 0:02:40.6]} 16. Be5 {[%clk 0:02:42.9]} 16...
Qc6 {[%clk 0:02:26.7]} 17. Nd4 {[%clk 0:02:42.4]} 17... Qa6 {[%clk 0:02:26.1]}
18. Qb2 {[%clk 0:02:37.3]} 18... b5 {[%clk 0:01:41.9]} 19. Ra1 {[%clk
0:02:36.7]} 19... Qb7 {[%clk 0:01:21.7]} 20. Na5 {[%clk 0:02:37.4]} 20... Qb6
{[%clk 0:01:19.5]} 21. Rc1 {[%clk 0:02:34.4]} 21... Nd5 {[%clk 0:01:18.6]} 22.
Ndb3 {[%clk 0:02:20.9]} 22... Nxb4 {[%clk 0:01:16.8]} 23. Bxg7 {[%clk
0:02:20.6]} 23... Rc8 {[%clk 0:00:56.1]} 24. Bd4 {[%clk 0:02:16.7]} 24... Qd6
{[%clk 0:00:46.5]} 25. Bc5 {[%clk 0:01:59.8]} 25... Rxc5 {[%clk 0:00:29.8]} 26.
Rxc5 {[%clk 0:01:58.8]} 26... Nd3 {[%clk 0:00:27.2]} 27. Bxd3 {[%clk 0:01:56.5]}
27... Qxd3 {[%clk 0:00:28.3]} 28. Rc1 {[%clk 0:01:55.9]} 28... Na6 {[%clk
0:00:27.2]} 29. Qc2 {[%clk 0:01:53.5]} 29... Qxc2 {[%clk 0:00:27.7]} 30. Rxc2
{[%clk 0:01:55.4]} 30... Bb4 {[%clk 0:00:22.6]} 31. Nc6 {[%clk 0:01:52.9]} 31...
Bd6 {[%clk 0:00:20.8]} 32. Rd2 {[%clk 0:01:50]} 32... Bxc6 {[%clk 0:00:22.2]}
33. Rxd6 {[%clk 0:01:50.9]} 33... Bb7 {[%clk 0:00:23.4]} 34. Rb6 {[%clk
0:01:50.2]} 34... Bc8 {[%clk 0:00:22.1]} 35. Rxb5 {[%clk 0:01:51.4]} 35... Kg7
{[%clk 0:00:23.4]} 36. f3 {[%clk 0:01:52.3]} 36... Bd7 {[%clk 0:00:24.6]} 37.
Rb6 {[%clk 0:01:52.7]} 37... Bc8 {[%clk 0:00:23.6]} 38. Kf2 {[%clk 0:01:53.4]}
1-0

[Event "*** Titled Tuesday 3|2 Blitz"]
[Site "Chess.com"]
[Date "2016.06.07"]
[Round "1"]
[White "MateusViageiro"]
[Black "dretch"]
[Result "0-1"]
[WhiteElo "2299"]
[BlackElo "2591"]
[TimeControl "180+2"]
[EndTime "11:07:01 PDT"]
[Termination "dretch won by checkmate"]

1. e4 {[%clk 0:02:58.9]} 1... e6 {[%clk 0:03:00.8]} 2. Qe2 {[%clk 0:02:56]} 2...
d5 {[%clk 0:02:50.7]} 3. exd5 {[%clk 0:02:56.3]} 3... Qxd5 {[%clk 0:02:51.3]} 4.
Nc3 {[%clk 0:02:57.2]} 4... Qd8 {[%clk 0:02:50.4]} 5. Nf3 {[%clk 0:02:58.7]}
5... Nf6 {[%clk 0:02:49.4]} 6. d4 {[%clk 0:02:59.6]} 6... Bb4 {[%clk 0:02:47.3]}
7. Bd2 {[%clk 0:02:59.1]} 7... O-O {[%clk 0:02:41.9]} 8. O-O-O {[%clk
0:02:59.5]} 8... Nc6 {[%clk 0:02:40.3]} 9. a3 {[%clk 0:02:58.2]} 9... a5 {[%clk
0:02:34.5]} 10. axb4 {[%clk 0:02:52.2]} 10... axb4 {[%clk 0:02:35.3]} 11. Nb1
{[%clk 0:02:53.3]} 11... Ra1 {[%clk 0:02:17]} 12. Bg5 {[%clk 0:02:48.1]} 12...
Qd5 {[%clk 0:02:08.3]} 13. Bxf6 {[%clk 0:02:26.6]} 13... Qa2 {[%clk 0:01:56.8]}
14. Bg5 {[%clk 0:02:12.3]} 14... Rxb1+ {[%clk 0:01:55.7]} 15. Kd2 {[%clk
0:02:13.1]} 15... Rxb2 {[%clk 0:01:57.3]} 16. Qd3 {[%clk 0:02:10]} 16... b3
{[%clk 0:01:43.5]} 17. Rc1 {[%clk 0:02:11]} 17... Nb4 {[%clk 0:01:43.3]} 18. Qc3
{[%clk 0:01:54.2]} 18... Nxc2 {[%clk 0:01:41.5]} 19. Kd3 {[%clk 0:01:37.6]}
19... b6 {[%clk 0:01:35.6]} 20. Ne5 {[%clk 0:01:30.7]} 20... Ba6+ {[%clk
0:01:31.5]} 21. Ke4 {[%clk 0:01:29.6]} 21... Bb7+ {[%clk 0:01:32.8]} 22. Kf4
{[%clk 0:01:29.3]} 22... f6 {[%clk 0:01:33.5]} 23. Bc4 {[%clk 0:01:25.5]} 23...
fxe5+ {[%clk 0:01:29.6]} 24. Kxe5 {[%clk 0:01:22.8]} 24... Bd5 {[%clk
0:01:16.4]} 25. Bxd5 {[%clk 0:01:21.1]} 25... exd5 {[%clk 0:01:16.6]} 26. Qc6
{[%clk 0:01:10.6]} 26... Nb4 {[%clk 0:01:14.3]} 27. Qe6+ {[%clk 0:01:07.4]}
27... Kh8 {[%clk 0:01:14.9]} 28. Qe7 {[%clk 0:00:59.4]} 28... Re2+ {[%clk
0:01:13.2]} 29. Be3 {[%clk 0:00:59]} 29... Nd3+ {[%clk 0:01:12.5]} 30. Kxd5
{[%clk 0:00:54.2]} 30... b2+ {[%clk 0:01:11.2]} 31. Rc4 {[%clk 0:00:53.7]} 31...
Qa8+ {[%clk 0:01:11.6]} 32. Rc6 {[%clk 0:00:48.1]} 32... Rd8+ {[%clk 0:01:04.5]}
33. Kc4 {[%clk 0:00:45]} 33... Qxc6+ {[%clk 0:01:04.5]} 34. Kxd3 {[%clk
0:00:45.9]} 34... Qc2# {[%clk 0:01:04.7]} 0-1

[Event "*** Titled Tuesday 3|2 Blitz"]
[Site "Chess.com"]
[Date "2016.06.07"]
[Round "1"]
[White "WGMCarlaHeredia"]
[Black "DrHolmes13"]
[Result "0-1"]
[WhiteElo "1864"]
[BlackElo "2382"]
[TimeControl "180+2"]
[EndTime "11:07:09 PDT"]
[Termination "DrHolmes13 won by resignation"]

1. e4 {[%clk 0:02:56.5]} 1... c6 {[%clk 0:03:00.7]} 2. Nc3 {[%clk 0:02:53.4]}
2... d5 {[%clk 0:03:02.6]} 3. Nf3 {[%clk 0:02:54.2]} 3... a6 {[%clk 0:03:04.1]}
4. d4 {[%clk 0:02:42.6]} 4... Bg4 {[%clk 0:03:04.6]} 5. h3 {[%clk 0:02:41.8]}
5... Bh5 {[%clk 0:03:04.6]} 6. Bd3 {[%clk 0:02:21]} 6... e6 {[%clk 0:03:04.2]}
7. Qe2 {[%clk 0:02:13.7]} 7... Nf6 {[%clk 0:03:03.7]} 8. Bg5 {[%clk 0:02:11.7]}
8... Be7 {[%clk 0:03:04.2]} 9. O-O-O {[%clk 0:02:07.3]} 9... b5 {[%clk 0:03:00]}
10. g4 {[%clk 0:02:07.5]} 10... Bg6 {[%clk 0:03:00.4]} 11. Ne5 {[%clk
0:01:24.3]} 11... b4 {[%clk 0:02:49.2]} 12. Na4 {[%clk 0:01:24.8]} 12... Bxe4
{[%clk 0:02:43.7]} 13. Bxf6 {[%clk 0:00:42.6]} 13... gxf6 {[%clk 0:02:15.9]} 14.
Bxe4 {[%clk 0:00:34.4]} 14... fxe5 {[%clk 0:02:14.4]} 15. Bg2 {[%clk 0:00:27.9]}
15... exd4 {[%clk 0:02:06.8]} 16. Rxd4 {[%clk 0:00:26.4]} 16... Nd7 {[%clk
0:02:01.4]} 17. f4 {[%clk 0:00:21.1]} 17... Qa5 {[%clk 0:01:57.7]} 18. b3 {[%clk
0:00:20.7]} 18... Nc5 {[%clk 0:01:48.8]} 19. f5 {[%clk 0:00:11.5]} 19... Nxa4
{[%clk 0:01:36.1]} 20. bxa4 {[%clk 0:00:13.4]} 20... Qc5 {[%clk 0:01:27.1]} 21.
Qe5 {[%clk 0:00:13.4]} 21... O-O-O {[%clk 0:01:16.6]} 22. fxe6 {[%clk
0:00:14.2]} 22... f6 {[%clk 0:01:13]} 23. Qe3 {[%clk 0:00:12.2]} 23... Bd6
{[%clk 0:01:10.9]} 24. Qd2 {[%clk 0:00:10.4]} 24... a5 {[%clk 0:01:08.7]} 25.
Re1 {[%clk 0:00:10.3]} 25... Be5 {[%clk 0:01:09.3]} 26. Rxe5 {[%clk 0:00:07.1]}
26... fxe5 {[%clk 0:01:11.2]} 27. Rd3 {[%clk 0:00:08]} 27... Qg1+ {[%clk
0:01:11.2]} 28. Kb2 {[%clk 0:00:08.2]} 28... e4 {[%clk 0:01:08.5]} 29. Rd4
{[%clk 0:00:08.9]} 29... Rhe8 {[%clk 0:01:04.6]} 30. Qe2 {[%clk 0:00:10.3]}
30... Qxd4+ {[%clk 0:01:04.7]} 0-1

[Event "*** Titled Tuesday 3|2 Blitz"]
[Site "Chess.com"]
[Date "2016.06.07"]
[Round "1"]
[White "kpio91"]
[Black "Andrejkin"]
[Result "1-0"]
[WhiteElo "2500"]
[BlackElo "2167"]
[TimeControl "180+2"]
[EndTime "11:07:16 PDT"]
[Termination "kpio91 won by resignation"]

1. e4 {[%clk 0:03:00.5]} 1... e5 {[%clk 0:02:58.4]} 2. Nf3 {[%clk 0:03:01.3]}
2... Nc6 {[%clk 0:03:00.3]} 3. Nc3 {[%clk 0:03:02.2]} 3... Nf6 {[%clk
0:03:00.3]} 4. Be2 {[%clk 0:03:02.1]} 4... d6 {[%clk 0:03:01.2]} 5. d4 {[%clk
0:03:02.4]} 5... exd4 {[%clk 0:03:01.8]} 6. Nxd4 {[%clk 0:03:03.5]} 6... Nxd4
{[%clk 0:03:03.7]} 7. Qxd4 {[%clk 0:03:04.1]} 7... Be7 {[%clk 0:03:05]} 8. Be3
{[%clk 0:03:03]} 8... Be6 {[%clk 0:03:04]} 9. O-O-O {[%clk 0:03:02.4]} 9... O-O
{[%clk 0:02:57.5]} 10. f3 {[%clk 0:03:02.1]} 10... a6 {[%clk 0:02:57.3]} 11. g4
{[%clk 0:02:58.1]} 11... Nd7 {[%clk 0:02:57.8]} 12. Kb1 {[%clk 0:02:53.7]} 12...
Bf6 {[%clk 0:02:57.8]} 13. Qd2 {[%clk 0:02:54.7]} 13... Ne5 {[%clk 0:02:53.3]}
14. Nd5 {[%clk 0:02:50.1]} 14... Bxd5 {[%clk 0:02:50.8]} 15. Qxd5 {[%clk
0:02:50.9]} 15... Rb8 {[%clk 0:02:46.6]} 16. f4 {[%clk 0:02:41.7]} 16... Nc6
{[%clk 0:02:44.7]} 17. g5 {[%clk 0:02:42.8]} 17... Be7 {[%clk 0:02:44.8]} 18. h4
{[%clk 0:02:43.3]} 18... Nb4 {[%clk 0:02:41.4]} 19. Qd2 {[%clk 0:02:44.2]} 19...
a5 {[%clk 0:02:34.7]} 20. h5 {[%clk 0:02:40.6]} 20... c5 {[%clk 0:02:33.9]} 21.
c3 {[%clk 0:02:37.1]} 21... Nc6 {[%clk 0:02:34.5]} 22. g6 {[%clk 0:02:38.1]}
22... h6 {[%clk 0:02:29.7]} 23. Bc4 {[%clk 0:02:38]} 23... Kh8 {[%clk 0:02:27]}
24. Bxf7 {[%clk 0:02:32.5]} 24... b5 {[%clk 0:02:25]} 25. Qd5 {[%clk 0:02:18.5]}
25... Rc8 {[%clk 0:02:12.5]} 26. e5 {[%clk 0:02:14.4]} 26... dxe5 {[%clk
0:02:08]} 27. fxe5 {[%clk 0:02:14.4]} 27... Qxd5 {[%clk 0:02:05]} 28. Rxd5
{[%clk 0:02:14.3]} 28... Rfd8 {[%clk 0:01:56.2]} 29. Rhd1 {[%clk 0:02:13.4]}
29... b4 {[%clk 0:01:48.1]} 30. Rxd8+ {[%clk 0:02:09.8]} 30... Rxd8 {[%clk
0:01:48.7]} 31. Rxd8+ {[%clk 0:02:10]} 31... Nxd8 {[%clk 0:01:50.6]} 32. Bd5
{[%clk 0:02:04]} 32... a4 {[%clk 0:01:45.8]} 33. cxb4 {[%clk 0:02:03.6]} 33...
cxb4 {[%clk 0:01:47.7]} 34. Kc2 {[%clk 0:02:05.3]} 34... Bh4 {[%clk 0:01:40.6]}
35. Bc5 {[%clk 0:02:00.4]} 35... b3+ {[%clk 0:01:38]} 36. axb3 {[%clk
0:02:00.5]} 36... axb3+ {[%clk 0:01:39.9]} 37. Kxb3 {[%clk 0:01:59.9]} 37... Bg3
{[%clk 0:01:41.1]} 38. Bd6 {[%clk 0:01:44.4]} 38... Ne6 {[%clk 0:01:27.9]} 39.
Kc4 {[%clk 0:01:40.1]} 39... Nc7 {[%clk 0:01:18.7]} 40. Bf3 {[%clk 0:01:38.2]}
40... Ne6 {[%clk 0:01:14.2]} 41. b4 {[%clk 0:01:38.3]} 41... Bf2 {[%clk
0:01:11.1]} 42. b5 {[%clk 0:01:36.9]} 42... Nf4 {[%clk 0:01:09.7]} 43. Bc5
{[%clk 0:01:35.2]} 43... Bxc5 {[%clk 0:01:09.7]} 44. Kxc5 {[%clk 0:01:36]} 44...
Ne6+ {[%clk 0:01:11.6]} 45. Kd6 {[%clk 0:01:35.2]} 45... Nd8 {[%clk 0:01:13.5]}
46. b6 {[%clk 0:01:34.8]} 46... Nb7+ {[%clk 0:01:11.7]} 47. Bxb7 {[%clk
0:01:34.8]} 1-0